Workbook

Sheet sheet1
B1: 2024年大同市农村义务教育学校特岗教师招聘进入体检人员名单
A2: 年度 | B2: 序号 | C2: 地市 | D2: 区县 | E2: 学校 | F2: 学段 | G2: 学科 | H2: 岗位类型 | I2: 学校类型 | J2: 岗位数 | K2: 笔试分数 | L2: 姓名 | M2: 性别 | N2: 准考证号码 | O2: 面试分数 | P2: 总成绩 | Q2: 是否进入体检
A3: 2024 | B3: 20381 | C3: 大同市 | D3: 天镇县 | E3: 天镇县东沙河中心学校 | F3: 小学 | G3: 语文 | H3: 国家特岗 | I3: 村小 | J3: 1 | K3: 77 | L3: 关雪琴 | M3: 女性 | N3: 140224102001706 | O3: 86.14 | P3: =K3*0.6+O3*0.4 -> 80.66 | Q3: 是
A4: 2024 | B4: 20532 | C4: 大同市 | D4: 天镇县 | E4: 天镇县南河堡中心学校 | F4: 初中 | G4: 生物 | H4: 国家特岗 | I4: 村小 | J4: 1 | K4: 90 | L4: 李林 | M4: 女性 | N4: 140224209007203 | O4: 89.54 | P4: =K4*0.6+O4*0.4 -> 89.82 | Q4: 是
A5: 2024 | B5: 20616 | C5: 大同市 | D5: 天镇县 | E5: 天镇县南河堡中心学校 | F5: 小学 | G5: 数学 | H5: 国家特岗 | I5: 村小 | J5: 1 | K5: 97 | L5: 张建花 | M5: 女性 | N5: 140224103002019 | O5: 84.12 | P5: =K5*0.6+O5*0.4 -> 91.85 | Q5: 是
A6: 2024 | B6: 20642 | C6: 大同市 | D6: 天镇县 | E6: 天镇县南河堡中心学校 | F6: 小学 | G6: 语文 | H6: 国家特岗 | I6: 村小 | J6: 1 | K6: 81 | L6: 罗欢 | M6: 女性 | N6: 140224102000321 | O6: 86.1 | P6: =K6*0.6+O6*0.4 -> 83.04 | Q6: 是
A7: 2024 | B7: 20764 | C7: 大同市 | D7: 天镇县 | E7: 天镇县南河堡中心学校1 | F7: 小学 | G7: 语文 | H7: 国家特岗 | I7: 村小 | J7: 1 | K7: 54 | L7: 曹吉国 | M7: 男性 | N7: 140224102000108 | O7: 74.84 | P7: =K7*0.6+O7*0.4 -> 62.34 | Q7: 是
A8: 2024 | B8: 20766 | C8: 大同市 | D8: 天镇县 | E8: 天镇县南高崖中心学校 | F8: 小学 | G8: 数学 | H8: 国家特岗 | I8: 乡镇小学 | J8: 1 | K8: 98 | L8: 任思乐 | M8: 女性 | N8: 140224103001913 | O8: 83.62 | P8: =K8*0.6+O8*0.4 -> 92.25 | Q8: 是
A9: 2024 | B9: 20789 | C9: 大同市 | D9: 天镇县 | E9: 天镇县大营盘中心学校 | F9: 小学 | G9: 语文 | H9: 国家特岗 | I9: 村小 | J9: 1 | K9: 83 | L9: 李棋 | M9: 女性 | N9: 140224102000225 | O9: 84.66 | P9: =K9*0.6+O9*0.4 -> 83.66 | Q9: 是
A10: 2024 | B10: 20824 | C10: 大同市 | D10: 天镇县 | E10: 天镇县安家皂学校 | F10: 初中 | G10: 数学 | H10: 国家特岗 | I10: 村小 | J10: 2 | K10: 100 | L10: 乔晓宇 | M10: 女性 | N10: 140224203006415 | O10: 82.9 | P10: =K10*0.6+O10*0.4 -> 93.16 | Q10: 是
A11: 2024 | B11: 20827 | C11: 大同市 | D11: 天镇县 | E11: 天镇县安家皂学校 | F11: 初中 | G11: 数学 | H11: 国家特岗 | I11: 村小 | J11: 2 | K11: 100 | L11: 米丹阳 | M11: 女性 | N11: 140224203005228 | O11: 91.02 | P11: =K11*0.6+O11*0.4 -> 96.41 | Q11: 是
A12: 2024 | B12: 20960 | C12: 大同市 | D12: 天镇县 | E12: 天镇县安家皂学校 | F12: 小学 | G12: 英语 | H12: 国家特岗 | I12: 村小 | J12: 1 | K12: 90 | L12: 肖冰 | M12: 女性 | N12: 140224104003317 | O12: 85.7 | P12: =K12*0.6+O12*0.4 -> 88.28 | Q12: 是
A13: 2024 | B13: 21049 | C13: 大同市 | D13: 天镇县 | E13: 天镇县张西河中心学校 | F13: 小学 | G13: 美术 | H13: 国家特岗 | I13: 乡镇小学 | J13: 1 | K13: 89 | L13: 杨帆 | M13: 女性 | N13: 140224108003808 | O13: 83.06 | P13: =K13*0.6+O13*0.4 -> 86.62 | Q13: 是
A14: 2024 | B14: 21197 | C14: 大同市 | D14: 天镇县 | E14: 天镇县新平中心学校 | F14: 小学 | G14: 心理 | H14: 国家特岗 | I14: 乡镇小学 | J14: 1 | K14: 80 | L14: 张嘉敏 | M14: 女性 | N14: 140224112004301 | O14: 84.54 | P14: =K14*0.6+O14*0.4 -> 81.82 | Q14: 是
A15: 2024 | B15: 21250 | C15: 大同市 | D15: 天镇县 | E15: 天镇县新平中心学校 | F15: 小学 | G15: 数学 | H15: 国家特岗 | I15: 乡镇小学 | J15: 1 | K15: 95 | L15: 雷翔江 | M15: 男性 | N15: 140224103002030 | O15: 83.6 | P15: =K15*0.6+O15*0.4 -> 90.44 | Q15: 是
A16: 2024 | B16: 21275 | C16: 大同市 | D16: 天镇县 | E16: 天镇县米薪关中心学校 | F16: 小学 | G16: 体育与健康 | H16: 国家特岗 | I16: 乡镇小学 | J16: 1 | K16: 86 | L16: 裴雄飞 | M16: 男性 | N16: 140224106004219 | O16: 80.6 | P16: =K16*0.6+O16*0.4 -> 83.84 | Q16: 是
A17: 2024 | B17: 21342 | C17: 大同市 | D17: 天镇县 | E17: 天镇县谷前堡镇水桶寺小学 | F17: 小学 | G17: 信息技术 | H17: 国家特岗 | I17: 村小 | J17: 1 | K17: 84 | L17: 王欢 | M17: 女性 | N17: 140224110002312 | O17: 84.44 | P17: =K17*0.6+O17*0.4 -> 84.18 | Q17: 是
A18: 2024 | B18: 21402 | C18: 大同市 | D18: 天镇县 | E18: 天镇县赵家沟中心学校 | F18: 小学 | G18: 音乐 | H18: 国家特岗 | I18: 乡镇小学 | J18: 1 | K18: 73 | L18: 谭慧敏 | M18: 女性 | N18: 140224107002524 | O18: 79.12 | P18: =K18*0.6+O18*0.4 -> 75.45 | Q18: 是
A19: 2024 | B19: 21488 | C19: 大同市 | D19: 天镇县 | E19: 天镇县逯家湾镇砖窑学校 | F19: 小学 | G19: 语文 | H19: 国家特岗 | I19: 村小 | J19: 1 | K19: 79 | L19: 赵子欣 | M19: 女性 | N19: 140224102001125 | O19: 83.04 | P19: =K19*0.6+O19*0.4 -> 80.62 | Q19: 是
A20: 2024 | B20: 21524 | C20: 大同市 | D20: 天镇县 | E20: 天镇县马家皂中心学校 | F20: 初中 | G20: 化学 | H20: 国家特岗 | I20: 乡镇初中 | J20: 1 | K20: 92 | L20: 乔元 | M20: 女性 | N20: 140224211005124 | O20: 91.54 | P20: =K20*0.6+O20*0.4 -> 91.82 | Q20: 是
A21: 2024 | B21: 21607 | C21: 大同市 | D21: 天镇县 | E21: 天镇县马家皂中心学校 | F21: 初中 | G21: 地理 | H21: 国家特岗 | I21: 乡镇初中 | J21: 1 | K21: 83 | L21: 张瑶 | M21: 女性 | N21: 140224207009607 | O21: 87.76 | P21: =K21*0.6+O21*0.4 -> 84.90 | Q21: 是
A22: 2024 | B22: 21651 | C22: 大同市 | D22: 天镇县 | E22: 天镇县马家皂乡兴隆堡小学 | F22: 小学 | G22: 语文 | H22: 国家特岗 | I22: 教学点 | J22: 1 | K22: 74 | L22: 叶乐 | M22: 女性 | N22: 140224102000513 | O22: 86.36 | P22: =K22*0.6+O22*0.4 -> 78.94 | Q22: 是
A23: 2024 | B23: 21683 | C23: 大同市 | D23: 广灵县 | E23: 广灵县作疃镇百疃小学校 | F23: 小学 | G23: 英语 | H23: 国家特岗 | I23: 村小 | J23: 1 | K23: 85 | L23: 王欣蕊 | M23: 女性 | N23: 140224104003424 | O23: 82.76 | P23: =K23*0.6+O23*0.4 -> 84.10 | Q23: 是
A24: 2024 | B24: 21700 | C24: 大同市 | D24: 广灵县 | E24: 广灵县作疃镇百疃小学校 | F24: 小学 | G24: 语文 | H24: 国家特岗 | I24: 村小 | J24: 1 | K24: 84 | L24: 许艳艳 | M24: 女性 | N24: 140224102000322 | O24: 83.44 | P24: =K24*0.6+O24*0.4 -> 83.78 | Q24: 是
A25: 2024 | B25: 21736 | C25: 大同市 | D25: 广灵县 | E25: 广灵县加斗镇西加斗小学校 | F25: 小学 | G25: 体育与健康 | H25: 国家特岗 | I25: 乡镇小学 | J25: 1 | K25: 68 | L25: 仝勋鑫 | M25: 男性 | N25: 140224106009317 | O25: 82.63 | P25: =K25*0.6+O25*0.4 -> 73.85 | Q25: 是
A26: 2024 | B26: 21744 | C26: 大同市 | D26: 广灵县 | E26: 广灵县加斗镇西加斗小学校 | F26: 小学 | G26: 英语 | H26: 国家特岗 | I26: 乡镇小学 | J26: 1 | K26: 89 | L26: 仝丽媛 | M26: 女性 | N26: 140224104003120 | O26: 83.54 | P26: =K26*0.6+O26*0.4 -> 86.82 | Q26: 是
A27: 2024 | B27: 21765 | C27: 大同市 | D27: 广灵县 | E27: 广灵县南村镇南村小学校 | F27: 小学 | G27: 语文 | H27: 国家特岗 | I27: 乡镇小学 | J27: 1 | K27: 77 | L27: 房进进 | M27: 女性 | N27: 140224102000212 | O27: 85.84 | P27: =K27*0.6+O27*0.4 -> 80.54 | Q27: 是
A28: 2024 | B28: 21793 | C28: 大同市 | D28: 广灵县 | E28: 广灵县南村镇香炉台小学校 | F28: 小学 | G28: 数学 | H28: 国家特岗 | I28: 村小 | J28: 1 | K28: 96 | L28: 王彦苏 | M28: 女性 | N28: 140224103002001 | O28: 85.1 | P28: =K28*0.6+O28*0.4 -> 91.64 | Q28: 是
A29: 2024 | B29: 21826 | C29: 大同市 | D29: 广灵县 | E29: 广灵县南村镇香炉台小学校 | F29: 小学 | G29: 美术 | H29: 国家特岗 | I29: 村小 | J29: 1 | K29: 81 | L29: 王淼 | M29: 女性 | N29: 140224108003602 | O29: 81.13 | P29: =K29*0.6+O29*0.4 -> 81.05 | Q29: 是
A30: 2024 | B30: 21851 | C30: 大同市 | D30: 广灵县 | E30: 广灵县南村镇香炉台小学校 | F30: 小学 | G30: 英语 | H30: 国家特岗 | I30: 村小 | J30: 1 | K30: 87 | L30: 王海瑛 | M30: 女性 | N30: 140224104003407 | O30: 83.48 | P30: =K30*0.6+O30*0.4 -> 85.59 | Q30: 是
A31: 2024 | B31: 21861 | C31: 大同市 | D31: 广灵县 | E31: 广灵县壶泉镇翟疃小学校 | F31: 小学 | G31: 语文 | H31: 国家特岗 | I31: 乡镇小学 | J31: 2 | K31: 78 | L31: 宋莉 | M31: 女性 | N31: 140224102001522 | O31: 86.7 | P31: =K31*0.6+O31*0.4 -> 81.48 | Q31: 是
A32: 2024 | B32: 21864 | C32: 大同市 | D32: 广灵县 | E32: 广灵县壶泉镇翟疃小学校 | F32: 小学 | G32: 语文 | H32: 国家特岗 | I32: 乡镇小学 | J32: 2 | K32: 77 | L32: 王艳丽 | M32: 女性 | N32: 140224102000802 | O32: 86.94 | P32: =K32*0.6+O32*0.4 -> 80.98 | Q32: 是
A33: 2024 | B33: 21929 | C33: 大同市 | D33: 广灵县 | E33: 广灵县宜兴乡西宜兴小学校 | F33: 小学 | G33: 数学 | H33: 国家特岗 | I33: 乡镇小学 | J33: 1 | K33: 98 | L33: 何家欢 | M33: 女性 | N33: 140224103002015 | O33: 82.04 | P33: =K33*0.6+O33*0.4 -> 91.62 | Q33: 是
A34: 2024 | B34: 21965 | C34: 大同市 | D34: 广灵县 | E34: 广灵县宜兴乡西宜兴小学校 | F34: 小学 | G34: 英语 | H34: 国家特岗 | I34: 乡镇小学 | J34: 1 | K34: 84 | L34: 张倩 | M34: 女性 | N34: 140224104003010 | O34: 82.5 | P34: =K34*0.6+O34*0.4 -> 83.40 | Q34: 是
A35: 2024 | B35: 21979 | C35: 大同市 | D35: 广灵县 | E35: 广灵县斗泉九年一贯制学校 | F35: 初中 | G35: 历史 | H35: 国家特岗 | I35: 乡镇初中 | J35: 1 | K35: 88 | L35: 田志清 | M35: 女性 | N35: 140224206008103 | O35: 88.12 | P35: =K35*0.6+O35*0.4 -> 88.05 | Q35: 是
A36: 2024 | B36: 22013 | C36: 大同市 | D36: 广灵县 | E36: 广灵县斗泉九年一贯制学校 | F36: 初中 | G36: 地理 | H36: 国家特岗 | I36: 乡镇初中 | J36: 1 | K36: 78 | L36: 于鸿嘉 | M36: 男性 | N36: 140224207004514 | O36: 86.76 | P36: =K36*0.6+O36*0.4 -> 81.50 | Q36: 是
A37: 2024 | B37: 22037 | C37: 大同市 | D37: 广灵县 | E37: 广灵县斗泉九年一贯制学校 | F37: 初中 | G37: 英语 | H37: 国家特岗 | I37: 乡镇初中 | J37: 1 | K37: 90 | L37: 吴珍霞 | M37: 女性 | N37: 140224204008617 | O37: 84.92 | P37: =K37*0.6+O37*0.4 -> 87.97 | Q37: 是
A38: 2024 | B38: 22104 | C38: 大同市 | D38: 广灵县 | E38: 广灵县斗泉九年一贯制学校 | F38: 初中 | G38: 道德与法治 | H38: 国家特岗 | I38: 乡镇初中 | J38: 1 | K38: 88 | L38: 薛家鑫 | M38: 女性 | N38: 140224201007909 | O38: 88.12 | P38: =K38*0.6+O38*0.4 -> 88.05 | Q38: 是
A39: 2024 | B39: 22171 | C39: 大同市 | D39: 广灵县 | E39: 广灵县望狐九年一贯制学校 | F39: 初中 | G39: 数学 | H39: 国家特岗 | I39: 乡镇初中 | J39: 2 | K39: 92 | L39: 武晓雪 | M39: 女性 | N39: 140224203006326 | O39: 85.42 | P39: =K39*0.6+O39*0.4 -> 89.37 | Q39: 是
A40: 2024 | B40: 22172 | C40: 大同市 | D40: 广灵县 | E40: 广灵县望狐九年一贯制学校 | F40: 初中 | G40: 数学 | H40: 国家特岗 | I40: 乡镇初中 | J40: 2 | K40: 92 | L40: 王淼淼 | M40: 女性 | N40: 140224203005718 | O40: 83.52 | P40: =K40*0.6+O40*0.4 -> 88.61 | Q40: 是
A41: 2024 | B41: 22214 | C41: 大同市 | D41: 广灵县 | E41: 广灵县望狐九年一贯制学校 | F41: 初中 | G41: 生物 | H41: 国家特岗 | I41: 乡镇初中 | J41: 1 | K41: 80 | L41: 贾雅丽 | M41: 女性 | N41: 140224209006913 | O41: 86.22 | P41: =K41*0.6+O41*0.4 -> 82.49 | Q41: 是
A42: 2024 | B42: 22260 | C42: 大同市 | D42: 广灵县 | E42: 广灵县望狐九年一贯制学校 | F42: 初中 | G42: 美术 | H42: 国家特岗 | I42: 乡镇初中 | J42: 1 | K42: 93 | L42: 宋佳丽 | M42: 女性 | N42: 140224214008206 | O42: 81.53 | P42: =K42*0.6+O42*0.4 -> 88.41 | Q42: 是
A43: 2024 | B43: 22319 | C43: 大同市 | D43: 广灵县 | E43: 广灵县望狐九年一贯制学校 | F43: 初中 | G43: 语文 | H43: 国家特岗 | I43: 乡镇初中 | J43: 1 | K43: 80 | L43: 赵欣 | M43: 女性 | N43: 140224202007704 | O43: 87.84 | P43: =K43*0.6+O43*0.4 -> 83.14 | Q43: 是
A44: 2024 | B44: 22374 | C44: 大同市 | D44: 广灵县 | E44: 广灵县望狐九年一贯制学校 | F44: 初中 | G44: 音乐 | H44: 国家特岗 | I44: 乡镇初中 | J44: 1 | K44: 60 | L44: 刘百合 | M44: 女性 | N44: 140224213008319 | O44: 83.07 | P44: =K44*0.6+O44*0.4 -> 69.23 | Q44: 是
A45: 2024 | B45: 22417 | C45: 大同市 | D45: 广灵县 | E45: 广灵县梁庄九年一贯制学校 | F45: 初中 | G45: 数学 | H45: 国家特岗 | I45: 乡镇初中 | J45: 2 | K45: 100 | L45: 赵继彩 | M45: 女性 | N45: 140224203006026 | O45: 82.46 | P45: =K45*0.6+O45*0.4 -> 92.98 | Q45: 是
A46: 2024 | B46: 22420 | C46: 大同市 | D46: 广灵县 | E46: 广灵县梁庄九年一贯制学校 | F46: 初中 | G46: 数学 | H46: 国家特岗 | I46: 乡镇初中 | J46: 2 | K46: 98 | L46: 王琪玥 | M46: 女性 | N46: 140224203005329 | O46: 87.56 | P46: =K46*0.6+O46*0.4 -> 93.82 | Q46: 是
A47: 2024 | B47: 22498 | C47: 大同市 | D47: 广灵县 | E47: 广灵县梁庄九年一贯制学校 | F47: 初中 | G47: 语文 | H47: 国家特岗 | I47: 乡镇初中 | J47: 2 | K47: 79 | L47: 谭雪瑞 | M47: 女性 | N47: 140224202007626 | O47: 86.4 | P47: =K47*0.6+O47*0.4 -> 81.96 | Q47: 是
A48: 2024 | B48: 22499 | C48: 大同市 | D48: 广灵县 | E48: 广灵县梁庄九年一贯制学校 | F48: 初中 | G48: 语文 | H48: 国家特岗 | I48: 乡镇初中 | J48: 2 | K48: 79 | L48: 陈潞 | M48: 女性 | N48: 140224202007713 | O48: 79.28 | P48: =K48*0.6+O48*0.4 -> 79.11 | Q48: 是
A49: 2024 | B49: 22604 | C49: 大同市 | D49: 广灵县 | E49: 广灵县梁庄镇冯庄小学校 | F49: 小学 | G49: 数学 | H49: 国家特岗 | I49: 村小 | J49: 1 | K49: 97 | L49: 仝江涛 | M49: 女性 | N49: 140224103002117 | O49: 84.42 | P49: =K49*0.6+O49*0.4 -> 91.97 | Q49: 是
A50: 2024 | B50: 22636 | C50: 大同市 | D50: 广灵县 | E50: 广灵县梁庄镇冯庄小学校 | F50: 小学 | G50: 英语 | H50: 国家特岗 | I50: 村小 | J50: 1 | K50: 78 | L50: 刘泓妤 | M50: 女性 | N50: 140224104003223 | O50: 81.18 | P50: =K50*0.6+O50*0.4 -> 79.27 | Q50: 是
A51: 2024 | B51: 22651 | C51: 大同市 | D51: 广灵县 | E51: 广灵县蕉山乡西蕉山小学校 | F51: 小学 | G51: 体育与健康 | H51: 国家特岗 | I51: 乡镇小学 | J51: 1 | K51: 62 | L51: 董友香 | M51: 女性 | N51: 140224106004206 | O51: 82.58 | P51: =K51*0.6+O51*0.4 -> 70.23 | Q51: 是
A52: 2024 | B52: 22661 | C52: 大同市 | D52: 广灵县 | E52: 广灵县蕉山乡西蕉山小学校 | F52: 小学 | G52: 英语 | H52: 国家特岗 | I52: 乡镇小学 | J52: 1 | K52: 87 | L52: 温璇 | M52: 女性 | N52: 140224104003130 | O52: 81.98 | P52: =K52*0.6+O52*0.4 -> 84.99 | Q52: 是
A53: 2024 | B53: 22678 | C53: 大同市 | D53: 浑源县 | E53: 东辛庄学校 | F53: 初中 | G53: 化学 | H53: 国家特岗 | I53: 乡镇初中 | J53: 1 | K53: 92 | L53: 张秀英 | M53: 女性 | N53: 140224211005105 | O53: 89.42 | P53: =K53*0.6+O53*0.4 -> 90.97 | Q53: 是
A54: 2024 | B54: 22716 | C54: 大同市 | D54: 浑源县 | E54: 东辛庄学校 | F54: 初中 | G54: 数学 | H54: 国家特岗 | I54: 乡镇初中 | J54: 1 | K54: 97 | L54: 高炳利 | M54: 女性 | N54: 140224203005322 | O54: 85.06 | P54: =K54*0.6+O54*0.4 -> 92.22 | Q54: 是
A55: 2024 | B55: 22789 | C55: 大同市 | D55: 浑源县 | E55: 东辛庄学校 | F55: 初中 | G55: 物理 | H55: 国家特岗 | I55: 乡镇初中 | J55: 1 | K55: 88 | L55: 武才林玉 | M55: 女性 | N55: 140224210008814 | O55: 87.02 | P55: =K55*0.6+O55*0.4 -> 87.61 | Q55: 是
A56: 2024 | B56: 22813 | C56: 大同市 | D56: 浑源县 | E56: 沙圪坨学校 | F56: 初中 | G56: 化学 | H56: 国家特岗 | I56: 乡镇初中 | J56: 1 | K56: 89 | L56: 曹敏学 | M56: 女性 | N56: 140224211004703 | O56: 86.44 | P56: =K56*0.6+O56*0.4 -> 87.98 | Q56: 是
A57: 2024 | B57: 22844 | C57: 大同市 | D57: 浑源县 | E57: 沙圪坨学校 | F57: 初中 | G57: 英语 | H57: 国家特岗 | I57: 乡镇初中 | J57: 1 | K57: 88 | L57: 薛佳 | M57: 女性 | N57: 140224204008706 | O57: 83.14 | P57: =K57*0.6+O57*0.4 -> 86.06 | Q57: 是
A58: 2024 | B58: 22922 | C58: 大同市 | D58: 浑源县 | E58: 王庄堡中学 | F58: 初中 | G58: 历史 | H58: 国家特岗 | I58: 乡镇初中 | J58: 1 | K58: 88 | L58: 曹思南 | M58: 女性 | N58: 140224206008029 | O58: 86.68 | P58: =K58*0.6+O58*0.4 -> 87.47 | Q58: 是
A59: 2024 | B59: 22956 | C59: 大同市 | D59: 浑源县 | E59: 王庄堡中学 | F59: 初中 | G59: 数学 | H59: 国家特岗 | I59: 乡镇初中 | J59: 2 | K59: 100 | L59: 刘斯宇 | M59: 女性 | N59: 140224203006815 | O59: 89.22 | P59: =K59*0.6+O59*0.4 -> 95.69 | Q59: 是
A60: 2024 | B60: 22958 | C60: 大同市 | D60: 浑源县 | E60: 王庄堡中学 | F60: 初中 | G60: 数学 | H60: 国家特岗 | I60: 乡镇初中 | J60: 2 | K60: 98 | L60: 李潇 | M60: 女性 | N60: 140224203006330 | O60: 85.68 | P60: =K60*0.6+O60*0.4 -> 93.07 | Q60: 是
A61: 2024 | B61: 23071 | C61: 大同市 | D61: 浑源县 | E61: 蔡村中学 | F61: 初中 | G61: 化学 | H61: 国家特岗 | I61: 乡镇初中 | J61: 1 | K61: 94 | L61: 王芳 | M61: 女性 | N61: 140224211005107 | O61: 89.26 | P61: =K61*0.6+O61*0.4 -> 92.10 | Q61: 是
A62: 2024 | B62: 23105 | C62: 大同市 | D62: 浑源县 | E62: 蔡村中学 | F62: 初中 | G62: 物理 | H62: 国家特岗 | I62: 乡镇初中 | J62: 2 | K62: 93 | L62: 苑静 | M62: 女性 | N62: 140224210008802 | O62: 85.64 | P62: =K62*0.6+O62*0.4 -> 90.06 | Q62: 是
A63: 2024 | B63: 23106 | C63: 大同市 | D63: 浑源县 | E63: 蔡村中学 | F63: 初中 | G63: 物理 | H63: 国家特岗 | I63: 乡镇初中 | J63: 2 | K63: 89 | L63: 安慧 | M63: 女性 | N63: 140224210008811 | O63: 86.08 | P63: =K63*0.6+O63*0.4 -> 87.83 | Q63: 是
A64: 2024 | B64: 23142 | C64: 大同市 | D64: 浑源县 | E64: 西坊城学校 | F64: 初中 | G64: 数学 | H64: 国家特岗 | I64: 乡镇初中 | J64: 2 | K64: 99 | L64: 谷雅超 | M64: 女性 | N64: 140224203005824 | O64: 89.18 | P64: =K64*0.6+O64*0.4 -> 95.07 | Q64: 是
A65: 2024 | B65: 23144 | C65: 大同市 | D65: 浑源县 | E65: 西坊城学校 | F65: 初中 | G65: 数学 | H65: 国家特岗 | I65: 乡镇初中 | J65: 2 | K65: 98 | L65: 曹美芸 | M65: 女性 | N65: 140224203005816 | O65: 86.1 | P65: =K65*0.6+O65*0.4 -> 93.24 | Q65: 是
A66: 2024 | B66: 23221 | C66: 大同市 | D66: 浑源县 | E66: 西坊城学校 | F66: 初中 | G66: 物理 | H66: 国家特岗 | I66: 乡镇初中 | J66: 2 | K66: 86 | L66: 孙建达 | M66: 男性 | N66: 140224210010111 | O66: 89.68 | P66: =K66*0.6+O66*0.4 -> 87.47 | Q66: 是
A67: 2024 | B67: 23223 | C67: 大同市 | D67: 浑源县 | E67: 西坊城学校 | F67: 初中 | G67: 物理 | H67: 国家特岗 | I67: 乡镇初中 | J67: 2 | K67: 84 | L67: 戎来 | M67: 男性 | N67: 140224210008819 | O67: 85.82 | P67: =K67*0.6+O67*0.4 -> 84.73 | Q67: 是
